Cogmind - Beta 13 @@@ ROGUE MODE // 2024.04.20 @ 22:20:59 Player: Leaves Result: Destroyed by G-47 Trooper with Particle Gun Performance ------------- Evolutions (2) 1000 Regions Visited (4) 800 Robots Destroyed (58) 290 Value Destroyed (1448) 1448 Prototype IDs (6) 120 Alien Tech Used (0) 0 Bonus (27) 27 TOTAL SCORE: 3685 Bonus ------- High Alert Combat Kills 27 Cogmind --------- Core Integrity 0/550 Matter 211/300 Energy 99/100 System Corruption 2% Temperature Cool (9) Movement Core (100) Ox1 Location -8/Materials Parts ------- > --- POWER (1) -------- (None) > --- PROPULSION (4) --- (None) > --- UTILITY (4) ------ (None) > --- WEAPON (2) ------- Great Maul > --- INVENTORY (5) ---- Improved Heat Sink Structural Scanner Advanced Beam Cannon Heavy Assault Rifle Peak State ------------ > --- POWER ------------ Light Nuclear Core > --- PROPULSION ------- Gravmag System Gravmag System Gravmag System Gravmag System > --- UTILITY ---------- High-capacity Storage Unit > --- WEAPON ----------- Advanced Beam Cannon > --- INVENTORY -------- Improved Ion Engine Improved Heat Sink Small Storage Unit Weight Redist. System Structural Scanner Heavy Assault Rifle Great Maul Great Maul Katana [Rating: 25] Favorites ----------- Power Ion Engine Engine Ion Engine Power Core Light Nuclear Core Propulsion Light Treads Treads Light Treads Leg Aluminum Leg Wheel Wheel Hover Unit Gravmag System Utility High-capacity Storage Unit Device Structural Scanner Storage High-capacity Storage Unit Processor Transport Network Coupler Protection Hardened Light Armor Plating Weapon EM Pulse Gun Energy Gun EM Pulse Gun Energy Cannon Advanced Beam Cannon Ballistic Gun Improved Assault Rifle Launcher Grenade Launcher Impact Weapon Great Maul Build | -11 -10 -9 -9 -8 ------- Run | Yrd Mat Mat Min Mat Slots Evolved 4 | . . 2 . 2 Power . | . . . . . Propulsion 2 | . . 1 . 1 Utility 2 | . . 1 . 1 Weapon . | . . . . . Parts Attached 47 | 6 5 14 3 19 Power 5 | 1 . 2 . 2 Engine 4 | 1 . 2 . 1 Core 1 | . . . . 1 Reactor . | . . . . . Propulsion 13 | 2 . 4 . 7 Treads 3 | 2 . 1 . . Leg 2 | . . 2 . . Wheel 4 | . . 1 . 3 Hover 4 | . . . . 4 Flight . | . . . . . Utility 8 | 1 3 1 1 2 Device 1 | . 1 . . . Storage 2 | 1 1 . . . Processor 1 | . 1 . . . Hackware . | . . . . . Protection 4 | . . 1 1 2 Artifact . | . . . . . Weapon 21 | 2 2 7 2 8 Energy Gun 6 | 2 1 1 1 1 Energy Cannon 3 | . . 1 . 2 Ballistic Gun 3 | . 1 2 . . Ballistic Cannon . | . . . . . Launcher 7 | . . 3 1 3 Special Weapon . | . . . . . Impact Weapon 2 | . . . . 2 Slashing Weapon . | . . . . . Piercing Weapon . | . . . . . Special Melee Weapon . | . . . . . Unidentified Prototypes 1 | . . 1 . . Parts Lost 29 | . 1 4 1 23 Power 4 | . . 1 . 3 Propulsion 13 | . . 3 . 10 Utility 5 | . . . 1 4 Weapon 7 | . 1 . . 6 Highest Loss Streak 21 | . 1 1 1 21 To Critical Strikes . | . . . . . Average Slot Usage (%) 92 | . 98 85 100 84 Engine 11 | . 14 10 11 7 Treads 16 | . 28 8 11 7 Leg 3 | . . 4 11 7 Wheel 5 | . . 8 11 13 Device 4 | . 10 . . . Storage 11 | . 14 11 11 8 Processor 6 | . 1 11 11 7 Protection 6 | . . 9 11 14 Energy Gun 12 | . 23 2 7 6 Ballistic Gun 9 | . 4 17 11 6 Naked Turns 4 | . . . . 4 Heaviest Build 60 | 14 51 59 54 60 Greatest Support 40 | 40 40 40 10 20 Greatest Overweight (x) 5 | . 1 5 5 5 Average Overweight (x) 2 | . . 4 5 2 Largest Inventory Capacity 20 | 8 20 20 20 20 Average Capacity 18 | 7 17 20 20 18 Most Carried 20 | 5 20 20 20 20 Average Carried 17 | 3 15 19 19 17 Final Capacity 20 | 8 20 20 20 5 Final Carried 20 | 4 20 20 20 4 Class Distribution -------------------- 51% | Mutant 48% | Scavenger-Mutant Dominant Class ---------------- Mutant | -10/Materials Scavenger-Mutant | -9/Materials Scavenger-Mutant | -9/Mines Scavenger-Mutant | -8/Materials Resources | -11 -10 -9 -9 -8 ----------- Run | Yrd Mat Mat Min Mat Matter Collected 851 | 247 77 347 59 121 Remotely . | . . . . . Salvage Created 1939 | . 450 734 109 646 Parts 123 | . 31 41 10 41 Haulers Intercepted 4 | . 1 2 . 1 Recyclers Shooed 2 | . 1 . . 1 Parts Field Recycled . | . . . . . Retrieved Matter . | . . . . . Parts Self-Destructed . | . . . . . Prevented . | . . . . . Kills | -11 -10 -9 -9 -8 ------- Run | Yrd Mat Mat Min Mat Combat Hostiles Destroyed 43 | . 9 20 2 12 Guns 21 | . 9 6 2 4 Cannons 4 | . . 3 . 1 AOE 17 | . . 10 . 7 Classes Destroyed 9 | . 4 3 . 2 Worker 6 | . . 2 1 3 Builder 2 | . . . . 2 Hauler 4 | . 1 2 . 1 Recycler 3 | . 1 . . 2 Swarmer 13 | . 3 7 . 3 Grunt 22 | . 6 7 2 7 Brawler 1 | . . 1 . . Duelist 2 | . . . . 2 Sentry 5 | . . 5 . . Best Kill Streak 7 | . 4 7 3 7 Combat Bots Only 6 | . 4 6 2 4 Max Kills in Single Turn 6 | . 1 4 1 6 Gunslinging . | . . . . . Exploded 3 | . . 3 . 3 Melee . | . . . . . Uniques/NPCs Destroyed . | . . . . . Combat | -11 -10 -9 -9 -8 -------- Run | Yrd Mat Mat Min Mat Hostile Shots Fired 312 | . 34 76 16 186 Missed 71 | . 6 12 5 48 Damage Taken 3632 | . 354 844 145 2289 Core 745 | . 73 110 . 562 Absorbed by Shields . | . . . . . Redirected to Shielding 103 | . . . . 103 Core Remaining (%) 80 | 100 70 . 72 . Volleys Fired 108 | . 21 50 8 29 Largest 2 | . 2 2 2 2 Hottest 128 | . 85 91 68 128 Shots Fired 195 | . 40 94 15 46 Gun 157 | . 40 72 15 30 Cannon 23 | . . 17 . 6 Launcher 15 | . . 5 . 10 Special . | . . . . . Kinetic 91 | . 8 59 8 16 Thermal 38 | . 2 30 . 6 Explosive 11 | . . 5 . 6 Electromagnetic 55 | . 30 . 7 18 Robot Hit Streak 20 | . 13 20 5 10 Robot Miss Streak 3 | . 1 2 2 3 Penetration Max . | . . . . . Secondary Targets 3 | . 1 . . 2 Max Gunslinging Chain 1 | . 1 . . 1 Shots Hit Robots 144 | . 28 69 12 35 Core Hits 98 | . 19 31 5 43 Critical Kills . | . . . . . Critical Parts Destroyed . | . . . . . Critical Strikes 3 | . 1 2 . . Burn 2 | . . 2 . . Corrupt 1 | . 1 . . . Melee Attacks 5 | . . . . 5 Impact 5 | . . . . 5 Slashing . | . . . . . Piercing . | . . . . . Sneak Attacks . | . . . . . Combat Hostiles . | . . . . . Follow-up Attacks . | . . . . . Damage Inflicted 3759 | . 380 1717 175 1487 Guns 1739 | . 379 812 175 373 Cannons 329 | . . 266 . 63 Explosions 1675 | . . 639 . 1036 Melee . | . . . . . Ramming 16 | . 1 . . 15 Kinetic 1054 | . 84 652 105 213 Thermal 522 | . 33 426 . 63 Explosive 1517 | . . 639 . 878 Electromagnetic 650 | . 262 . 70 318 Impact . | . . . . . Slashing . | . . . . . Piercing . | . . . . . Highest Corruption 2 | . . . . 2 Average Corruption 2 | . . . . 2 Corruption Purged . | . . . . . Corruption Blocked . | . . . . . Effects 3 | . . . . 3 Matter Fused 1 | . . . . 1 Heat Flow Errors 1 | . . . . 1 Alerts 1 | . . . . 1 Overload Shots . | . . . . . Overflow Damage 79 | . . 66 . 13 Projectiles 13 | . . . . 13 Explosions 66 | . . 66 . . Melee . | . . . . . Knockbacks . | . . . . . Impact . | . . . . . Kinetic . | . . . . . Secondary . | . . . . . Self-Inflicted Damage 139 | . . 39 . 100 Shots 6 | . . 1 . 5 Rammed 2 | . 1 . . 1 Targets Rammed 2 | . 1 . . 1 Kicked . | . . . . . Crushed . | . . . . . Highest Temperature 270 | . 142 270 138 225 Average Temperature 76 | . 60 70 82 95 Received Heat Transfer 1626 | . 108 282 102 1134 Effects 2 | . . 1 . 1 Interference 2 | . . 1 . 1 Siege Activations . | . . . . . Robots Corrupted . | . . . . . Combat Hostiles . | . . . . . Parts Fried 1 | . 1 . . . Impact Corruptions . | . . . . . Robots Melted 1 | . . 1 . . Combat Hostiles 1 | . . 1 . . Parts Melted 2 | . . 2 . . Heat Transferred 1221 | . 74 1036 . 111 Parts Sabotaged . | . . . . . Parts Stolen . | . . . . . Parts Stripped . | . . . . . Power Chain Reactions . | . . . . . Alert | -11 -10 -9 -9 -8 ------- Run | Yrd Mat Mat Min Mat Peak Influence 438 | . 140 438 123 384 Initial 78 | . . . 78 47 Average 120 | . 45 216 105 158 Maximum Alert Level 2 | . . 2 . 1 Low Security (%) 76 | 100 100 41 100 61 Level 1 22 | . . 53 . 38 Level 2 1 | . . 4 . . Level 3 . | . . . . . Level 4 . | . . . . . Level 5 . | . . . . . High Security . | . . . . . Max Security . | . . . . . Squads Dispatched 5 | . 1 . . 4 Investigation 1 | . . . . 1 Extermination . | . . . . . Reinforcement 3 | . 1 . . 2 Assault . | . . . . . Garrison 1 | . . . . 1 Intercept . | . . . . . Searches Triggered . | . . . . . Construction Impeded . | . . . . . Haulers Reinforced . | . . . . . Active Scanning Responses . | . . . . . Cargo Convoy Interrupts . | . . . . . Stealth | -11 -10 -9 -9 -8 --------- Run | Yrd Mat Mat Min Mat Distress Signals 6 | . . 5 . 1 Communications Jammed . | . . . . . Distress Signals . | . . . . . Times Spotted 75 | . 14 28 2 31 Peak Tracking Total 11 | . 3 5 2 11 Tactical Retreats 6 | . . 4 . 2 Traps | -11 -10 -9 -9 -8 ------- Run | Yrd Mat Mat Min Mat Traps Triggered 4 | . 2 . . 2 Indirectly 1 | . . . . 1 Trap Hack Attempts . | . . . . . Triggered . | . . . . . Disarmed 4 | . 4 . . . Reprogrammed . | . . . . . Reused . | . . . . . Traps Extracted . | . . . . . Installed . | . . . . . Triggered . | . . . . . Machines | -11 -10 -9 -9 -8 ---------- Run | Yrd Mat Mat Min Mat Machines Disabled 4 | . . 1 . 3 Max in Single Turn 2 | . . 1 . 2 Machines Repaired . | . . . . . Machines Dismantled . | . . . . . Machines Sabotaged . | . . . . . Overloaded Fab Kills . | . . . . . Hacking | -11 -10 -9 -9 -8 --------- Run | Yrd Mat Mat Min Mat Machines Accessed 11 | . 5 5 . 1 Terminals 10 | . 5 5 . . Fabricators . | . . . . . Repair Stations . | . . . . . Recycling Units . | . . . . . Scanalyzers 1 | . . . . 1 Garrison Access . | . . . . . Total Hacks 30 | . 14 14 . 2 Successful 16 | . 8 6 . 2 Failed 14 | . 6 8 . . Catastrophic . | . . . . . Database Lockouts . | . . . . . Manual 20 | . 9 11 . . Terminals 28 | . 14 14 . . Fabricators . | . . . . . Repair Stations . | . . . . . Recycling Units . | . . . . . Scanalyzers 2 | . . . . 2 Garrison Access . | . . . . . Terminal Hacks 14 | . 8 6 . . Record 1 | . . 1 . . Robot Analysis 4 | . 3 1 . . Prototype ID Bank 2 | . 1 1 . . Branch Access Points 1 | . . 1 . . Alert Level 1 | . 1 . . . Unreport Threat 2 | . 1 1 . . Disarm Traps 1 | . 1 . . . Hauler Manifests 2 | . 1 1 . . Fabricator Hacks . | . . . . . Repair Station Hacks . | . . . . . Recycling Unit Hacks . | . . . . . Scanalyzer 2 | . . . . 2 Insert Component 1 | . . . . 1 Analyze 1 | . . . . 1 Garrison Access Hacks . | . . . . . Unauthorized Hacks . | . . . . . Terminals . | . . . . . Fabricators . | . . . . . Repair Stations . | . . . . . Recycling Units . | . . . . . Scanalyzers . | . . . . . Garrison Access . | . . . . . Data Cores Recovered . | . . . . . Used . | . . . . . Hacking Detections 10 | . 5 5 . . Full Trace Events 1 | . 1 . . . Feedback Events . | . . . . . Feedback Blocked . | . . . . . Robot Schematics Acquired . | . . . . . Robots Built . | . . . . . Authchips . | . . . . . Time . | . . . . . Total Robot Build Rating . | . . . . . Part Schematics Acquired 1 | . . . . 1 Parts Built . | . . . . . Authchips . | . . . . . Time . | . . . . . Total Part Build Rating . | . . . . . Parts Repaired . | . . . . . Time . | . . . . . Parts Recycled . | . . . . . Recycled Matter . | . . . . . Retrieved Matter . | . . . . . Retrieved Components . | . . . . . Parts Scanalyzed 1 | . . . . 1 Part Schematics Acquired 1 | . . . . 1 Parts Damaged . | . . . . . Bothacking | -11 -10 -9 -9 -8 ------------ Run | Yrd Mat Mat Min Mat Used RIF Installer . | . . . . . Robots Hacked . | . . . . . Non-combat . | . . . . . Combat . | . . . . . Robot Hacks Applied . | . . . . . Relay Couplers Released . | . . . . . Fabnet Peak Effective % . | . . . . . Robots Rewired . | . . . . . Allies Hacked . | . . . . . Hacks Repelled . | . . . . . Allies | -11 -10 -9 -9 -8 -------- Run | Yrd Mat Mat Min Mat Total Allies . | . . . . . Largest Group . | . . . . . Highest-Rated Group . | . . . . . Highest-Rated Ally . | . . . . . Total Orders . | . . . . . Ally Attacks . | . . . . . Total Damage . | . . . . . Kills . | . . . . . Allies Corrupted . | . . . . . Allies Melted . | . . . . . Intel | -11 -10 -9 -9 -8 ------- Run | Yrd Mat Mat Min Mat Robot Analysis Total 4 | . 3 1 . . Derelict Logs Recovered . | . . . . . Drone Launches . | . . . . . Drone Recoveries . | . . . . . Exploration | -11 -10 -9 -9 -8 ------------- Run | Yrd Mat Mat Min Mat Turns Passed 3033 | 79 1225 964 370 395 Spaces Moved 1393 | 43 511 416 207 216 Core 19 | 2 . . . 17 Treads 604 | 41 511 52 . . Legs 12 | . . 12 . . Wheels 736 | . . 352 207 177 Hover 22 | . . . . 22 Flight . | . . . . . Fastest Speed 50 | 50 160 155 155 50 Average Speed 177 | 154 217 177 155 109 Slowest Speed 470 | 160 240 470 155 155 Overloaded Moves . | . . . . . Propulsion Burnouts . | . . . . . Robots Hopped . | . . . . . Cave-ins Triggered . | . . . . . Exploration Rate (%) 38 | 4 73 32 56 26 Regions Visited 4 Branch Regions 1 Pre-discovered Areas . | . . . . . Known Exits Taken 1 | . . 1 . . Unknown Exits Taken 3 | 1 1 . 1 . Scrap Searched 3 | . . . 3 . Spaces Dug 11 | . . . . 11 Terrain Destroyed 72 | . . 37 . 35 Melee 4 | . . . . 4 Projectile . | . . . . . AOE 68 | . . 37 . 31 Terrain Rammed . | . . . . . Walls Destroyed . | . . . . . Machines Disabled . | . . . . . Actions | -11 -10 -9 -9 -8 --------- Run | Yrd Mat Mat Min Mat Total 1757 | 53 593 546 241 324 Wait 119 | . 11 54 19 35 Move 1389 | 42 510 415 206 216 Hop . | . . . . . Pick Up 54 | 5 29 7 3 10 Fast Attach 13 | 5 3 4 . 1 Attach 21 | 1 1 2 1 16 Detach 2 | . 1 . . 1 Swap 13 | . 1 8 2 2 Drop 31 | . 15 6 2 8 Fire 108 | . 21 50 8 29 Melee 5 | . . . . 5 Ram 1 | . . . . 1 Kick . | . . . . . Crush 1 | . 1 . . . Escape Stasis . | . . . . . Rewire . | . . . . . Trap . | . . . . . Miscellaneous . | . . . . . Route ------- -11/Scrapyard -10/Materials (discovered 3 exits: *Mat x3) -9/Materials -9/Mines -8/Materials History --------- Turn | Location | Event 23 | -11/Scrapyard | Discovered new exit (range 15) 80 | -11/Scrapyard | Entered Materials 318 | -10/Materials | Build established: Mutant 473 | -10/Materials | Discovered new exit (range 16) 1033 | -10/Materials | Discovered new exit (range 3) 1242 | -10/Materials | Discovered new exit (range 13) 1305 | -10/Materials | Entered another Materials area 1305 | -9/Materials | Evolved 2 slots: Propulsion x1, Utility x1 1797 | -9/Materials | Build established: Scavenger-Mutant 2099 | -9/Materials | Identified exit to Mines 2269 | -9/Materials | Entered Mines 2517 | -9/Mines | Found a hidden stash of uninstalled traps 2605 | -9/Mines | Discovered new exit (range 8) 2639 | -9/Mines | Entered Materials 2639 | -8/Materials | Evolved 2 slots: Propulsion x1, Utility x1 2929 | -8/Materials | Garrison activated, responded to threat 2993 | -8/Materials | Core integrity fell below 50% 3018 | -8/Materials | Core integrity fell below 20% 3034 | -8/Materials | Destroyed by G-47 Trooper with Particle Gun Last Messages --------------- 02988_ U-05 Engineer lays Concrete. 02989_ Ion Cannon destroyed. 02989_ K-01 Serf collects debris. 02989_ Penetrated by Slug. 02990_ U-05 Engineer lays Concrete. 02991_ Critical hit (Burn: +37). 02991_ U-05 Engineer lays Concrete. 02992_ Gravmag System destroyed. 02992_ K-01 Serf collects debris. 02992_ Dropped Hcp. Storage Unit. 02992_ U-05 Engineer lays Concrete. 02992_ Gravmag System destroyed. 02995_ Slug penetrates G-47 Trooper. 02997_ K-01 Serf collects debris. 03007_ Slug penetrates Wall. 03014_ Gravmag System destroyed. 03014_ Lgt. Nuclear Core destroyed. 03021_ Great Maul destroyed. 03027_ Critical hit (Burn: +37). 03033_ U-05 Engineer lays Concrete. Map ----- +----------------------------------------------------+ | ????????????????????????????????????????# #??? | | ?????????????????????????????########+### #??? | | ???????????????????????????? #??? | | ?????????????? ???????????? +??? | | ?????????????? ???????????? ! #??? | | ?????????????? ?????????????###### !! #??? | | ?????????????? ??????????????????# #??? | | ?????????????? ??????????????????# #??? | | ?????????????? ??????????????##### #??? | | ?????????????? ??????????????#]]= #??? | | ?????????????? +?????????????#]== #??? | | ?????????????? #?????????????#[[ #??? | | ??????????????# #?????????????#[[ #### | | ??????????????# #?????????????# ########## | | ??????????????# #?????????????#] #????????# " | | ??????????????# #?????????????##### #????????# " | | ????????????###+####??????????????# ########## " | | ????????????# ##############?# + | | ????????????# ! " ### ######## # | | ????????????# !*" # " #??????# # | | ???????????## =]!!"# ####+######??# + ! | | ???????????# ![/ # ## #??# # | | ??????###### ][ []# "" """ #??# ### | | ??????# =/#w####;#g######### """ #??# #?? | | ??? *kk=!* g######## """ #??# #?? | | ?? =%!!= Y @ g #??# #?? | | ?? = ==]######## """ #??# #?? | | ??##### =]]#??????# """ #??# #?? | | ??????# =] #??????# """ #??# #?? | | ??????# "" #??????# #??# #?? | | ??????# "Y k #?????###########??# #?? | | ??????# " #?##### #???# #?? | | ??????# * #?# + #?###+### | | ??????# #?# # ! ### ! | | ??????# ############ ### # + + % | | ??????# ??????????# ## # ### "" | | ?????????????????????# k ## /% ][[ #?#! """ | | ?????????????????????##% ## #% [[ #?# S" | | ?????????????????????## % # # *![[[ #?# [ | | ????????????????????? #u # = #?####+## | | ????????????????????## u%% = ##########???????? | | ????????? ########### [% =#% #????????????????? | | ???????? != %%=[ #????????????????? | | ???????? !* [ ! #????????????????? | | ?????????? " [ = #????????????????? | | ??????????"G" ] """"""" #???????????? | | ??????????" " """"""" # #???????????? | | ?????????? """"""" ######???????????? | | ????????? """"""" #????????????????? | | ?????????? """"""" #????????????????? | +----------------------------------------------------+ Best States ------------- Heat Dissipation 31 Energy Generation 14 Energy Capacity 280 Matter Stores 300 Matter Capacity 300 Sight Range 16 Terrain Scan Density 10 Armor Coverage 150 Propulsion Shielding 33 Evasion (%) 53 Recoil Reduction 2 Item Schematics ----------------- Cld. Ion Engine | -8/Materials | Scanalyzed Robot Schematics ------------------ None Fabricated ------------ Nothing Alien Tech Used ----------------- None Achievements -------------- Armchair Analyst Challenges ------------ None Game ------ Seed InsulatedMetafieldAirjet Manual? 0 Play Time 00:48:08 Cumulative 14.5 hours Start 2024.04.20 @ 21:23:10 End 2024.04.20 @ 22:20:59 Sessions 5 Manual Loads 0 Difficulty Rogue Special Mode None Game No. 9 Rogue 9 Adventurer 0 Explorer 0 Win Type - Total 0 Types 0/0/0/0/0/0/0/0/0 Lore% 8 Gallery% 17 Achievement% 16 Wizard Run 0 Options --------- Layout 1 ASCII 0 Keyboard 1 Movement Arrows Keybinds 0 Fullscreen 2 Font 24/Smallcaps Map View 50x35 Zoom Use 0% Tactical HUD 1 Map Filters NONE Filters NONE Steam 0 RUN: 61497e52-7d17-4ceb-8813-c4b2ac802abc